{"text_format":"3","workbook":"xlsx","n_sheets":2,"sheets":["Blatt 2 Seite 1","Blatt 2 Seite 2"],"not_rendered":{"defined_names":2},"read":"whole","date_system":"1900"}

{"sheet":"Blatt 2 Seite 1","index":0,"n_rows":48,"n_cols":9,"rows_kept":48,"merged":[[1,5,1,6],[2,5,2,6],[8,0,8,1],[9,3,9,4],[15,0,15,1],[33,1,33,2],[34,0,34,2],[38,0,38,2],[39,0,39,2],[40,0,40,2],[41,0,41,2],[45,0,45,1],[46,8,46,9]]}
[]
["Planungsdaten                                         ",{"$nulls":4},"RLBau Muster 6"]
[{"$nulls":5},"Blatt 2  Seite 1"]
[]
[]
[]
["Baugrundstück"]
[]
[null,null,"m2","BAW (Bauart/ Bauweise)",null,"Geschosszahl",{"$f":"SUM(G10:G12)","v":0}]
["BF","Bebaute Fläche",null,"Stellplätze",null,"UG"]
["UF","Unbebaute Fläche",{"$f":"(C12-C10)","v":0},"gefordert","erfüllt","OG"]
["GF","Grundstücksfläche",{"$nulls":3},"DG"]
[]
["Grundflächen und Rauminhalte im Bauwesen (nach DIN 277 Stand 2016-01)"]
[]
[{"$nulls":3},"Regelfall (R) Fläche in m2","Sonderfall (S) Fläche in m2","Fläche \ngesamt m2","Fl. (R)/NUF (R) \n%"]
["NUF 1","Wohnen und Aufenthalt",{"$nulls":3},{"$f":"IF(E17>0,D17+E17,(\"\"))","v":""},{"$f":"(D17/D25)*100","v":{"$error":"#DIV/0!"}}]
["NUF 2","Büroarbeit",{"$nulls":3},{"$f":"IF(E18>0,D18+E18,(\"\"))","v":""},{"$f":"(D18/D25)*100","v":{"$error":"#DIV/0!"}}]
["NUF 3","Produktion, Hand- und Maschinenarbeit, Forschung und Entwicklung ",{"$nulls":3},{"$f":"IF(E19>0,D19+E19,(\"\"))","v":""},{"$f":"(D19/D25)*100","v":{"$error":"#DIV/0!"}}]
["NUF 4","Lagern, Verteilen und Verkaufen",{"$nulls":3},"",{"$f":"(D20/D25)*100","v":{"$error":"#DIV/0!"}}]
["NUF 5","Bildung, Unterricht und Kultur",{"$nulls":3},"",{"$f":"(D21/D25)*100","v":{"$error":"#DIV/0!"}}]
["NUF 6","Heilen und Pflegen",{"$nulls":3},"",{"$f":"(D22/D25)*100","v":{"$error":"#DIV/0!"}}]
["NUF 1-6","Nutzungsfläche (1 - 6)",null,{"$f":"SUM(D17:D22)","v":0},{"$f":"SUM(E17:E22)","v":0},"",{"$f":"(D23/D25)*100","v":{"$error":"#DIV/0!"}}]
["NUF 7","Sonstige Nutzungen",{"$nulls":3},"",{"$f":"(D24/D25)*100","v":{"$error":"#DIV/0!"}}]
["NUF","Nutzungsfläche",null,{"$f":"SUM(D23+D24)","v":0},{"$f":"SUM(E23+E24)","v":0},"",{"v":100,"d":"100.00"}]
["TF","Technikfläche",{"$nulls":3},"",{"$f":"(D26/D25)*100","v":{"$error":"#DIV/0!"}}]
["VF","Verkehrsfläche",{"$nulls":3},"",{"$f":"(D27/D25)*100","v":{"$error":"#DIV/0!"}}]
["NRF","Netto - Raumfläche",null,{"$f":"SUM(D25:D27)","v":0},{"$f":"SUM(E25:E27)","v":0},"",{"$f":"SUM(G25:G27)","v":{"$error":"#DIV/0!"}}]
["KGF","Konstruktions-Grundfläche",null,{"$f":"(D30-D28)","v":0},{"$f":"(E30-E28)","v":0},"",{"$f":"(G30-G28)","v":{"$error":"#DIV/0!"}}]
["BGF","Brutto-Grundfläche",{"$nulls":3},"",{"$f":"(D30/D25)*100","v":{"$error":"#DIV/0!"}}]
[]
["Brutto-Rauminhalt (BRI)"]
[]
[{"$nulls":3},"BRI (R) \nm3","BRI (S) \nm3","BRI gesamt \nm3","BRI (R)/BGF (R)\nm"]
["BRI",{"$nulls":4},{"$f":"IF(E35>0,D35+E35,(\"\"))","v":""},{"$f":"(D35/D30)","v":{"$error":"#DIV/0!"}}]
[]
["NUF 7 Sonstige Nutzungen"]
[]
["in NUF 7 enthaltene Teilflächen",null,null,"Regelfall (R) Fläche in m2","Sonderfall (S) Fläche in m2","Fläche \ngesamt m2","Fl. (R)/NUF (R) \n%"]
["7.1:  Technik für nutzungsspezifische Einrichtungen",{"$nulls":4},{"$f":"IF(E40>0,D40+E40,(\"\"))","v":""},{"$f":"(D40/D25)*100","v":{"$error":"#DIV/0!"}}]
["7.2:  Technik zur Ver- und Entsorgung anderer Bauwerke",{"$nulls":4},"",{"$f":"(D41/D25)*100","v":{"$error":"#DIV/0!"}}]
["7.8/7.9:  Sanitär- und Umkleideräume, Reinigungsschleusen",{"$nulls":4},"",{"$f":"(D42/D25)*100","v":{"$error":"#DIV/0!"}}]
[]
["Nutzeinheiten"]
[]
["Bezeichnung",null,"Anzahl","NUF (R)/NE \nm2/NE","NRF (R)/NE \nm2/NE","BWK/NE \n€/NE","GBK/NE \n€/NE",null,"Angaben aus Muster 6 Blatt 3 Seite 1 übertragen:"]
["NE",null,null,{"$f":"(D25/C47)","v":{"$error":"#DIV/0!"}},{"$f":"(D28/C47)","v":{"$error":"#DIV/0!"}},{"$f":"(K47/C47)","v":{"$error":"#DIV/0!"}},{"$f":"(K48/C47)","v":{"$error":"#DIV/0!"}},null,"BWK - Bauwerk (300 + 400)"]
[{"$nulls":8},"GBK - Gesamtbaukosten"]

{"sheet":"Blatt 2 Seite 2","index":1,"n_rows":63,"n_cols":8,"rows_kept":63,"merged":[[1,7,1,8],[6,0,6,4],[8,0,8,1],[10,0,10,1],[18,0,18,1],[22,0,22,8],[23,0,23,7],[26,0,26,2],[28,0,28,5],[31,0,31,5],[33,0,33,8],[35,0,35,1],[36,2,36,8],[37,2,37,3],[39,0,39,1],[40,2,40,8],[41,2,41,8],[42,2,42,8],[43,1,43,3],[45,0,45,2]]}
[]
[null,"RLBau Muster 6",{"$nulls":5},"Planungsdaten"]
[null,"Blatt 2  Seite 2"]
[]
[]
[]
["Erläuterungen zu Blatt 2 Seite 1"]
[]
["Bauart/Bauweise:"]
[]
["-   Bauart:",null,1,"Mauerwerksbau"]
[null,null,2,"Massenbetonbau"]
[null,null,3,"Stahlbetonskelettbau"]
[null,null,4,"Großtafelbau"]
[null,null,5,"Raumzellenbau"]
[null,null,6,"Stahlskelettbau"]
[null,null,7,"Holzbau"]
[]
["-   Bauweise: ",null,1,"Ortbauweise"]
[null,null,2,"Fertigteilbauweise"]
[null,null,3,"Mischbauweise"]
[]
["Es  ist  eine  dreistellige  Schlüsselzahl einzutragen. Die  beiden  ersten  Ziffern  stehen für  die Bauart, die dritte für die"]
["Bauweise. Soweit nur eine Bauart vorkommt, ist als zweite Ziffer eine Null einzutragen."]
[]
["Beim Zusammentreffen mehrerer Bauarten ist die erste Stelle für die überwiegende, die zweite Stelle für die sekundäre"]
["Bauart zu verwenden."]
[]
["Beispiel: Stahlbetonskelettbau in Ortbauweise - Eintrag: 301"]
[]
[]
["Grundflächen und Rauminhalte im Bauwesen nach DIN 277-1:"]
[]
["Alle Flächen sind auf volle m2, alle Rauminhalte auf volle m3 zu runden. Es bedeutet gemäß DIN 277:"]
[]
["-   Regelfall (R):    ",null,"vollständig umschlossene Grundflächen und Räume, deren Flächen den Netto-Raumflächen"]
[null,null," (NRF) zuzuordnen sind. Hierzu zählen auch Räume mit Öffnungen,  zum Beispiel Garagen mit"]
[null," ","Rollgittertoren."]
[]
["-   Sonderfall (S): ",null,"nicht vollständig umschlossene Grundflächen und Räume, deren Flächen der NRF zuzuordnen"]
[null,null,"sind und die baukonstruktiv mit dem Bauwerk verbunden sind,  zum Beispiel Loggien, Balkone,"]
[null,null,"Dachterrassen, Innen- oder Eingangshöfe, außen liegende (baukonstruktiv mit dem Bauwerk"]
[null,null,"verbundene) Erschließungsanlagen."]
[]
[]
["Nutzeinheiten (NE):"]
[]
["-","Arbeitsplatz"]
["-","Ausbildungsplatz"]
["-","Bettenplatz"]
["-","Büroarbeitsplatz"]
["-","Haftplatz"]
["-","Hörsaalplatz"]
["-","Kinderbetreuungsplatz"]
["-","Laborplatz"]
["-","Operationsplatz"]
["-","Schießbahn"]
["-","Sitzplatz"]
["-","Stellplatz"]
["-","Tierstallplatz"]
["-","Unterkunftseinheit"]
["-","Verpflegungsteilnehmer"]
["-","Sonstiges"]